bitfinex-derivatives/quotes_SOLF0:USTF0_20251109
["timestamp","ask_amount","ask_price","bid_price","bid_amount"]
[1762700446312,3.05,160.3,160.2,3.05]
[1762700447320,3.05,160.3,160.23,3.08011142]
[1762700451108,3.14,160.36,160.23,3.08011142]
[1762700451312,3.14,160.34,160.28,0.0438956]
[1762700451613,3.14,160.34,160.29,0.04168879]
[1762700452018,3.14,160.34,160.29,3.08168879]
[1762700453520,3.14,160.34,160.29,0.04168879]
[1762700453716,3.14,160.32,160.29,0.04168879]
[1762700453916,3.14,160.32,160.29,0.04523777]
[1762700454715,3.14,160.32,160.19,3.04]
[1762700456019,3.14,160.32,160.12,98.6]
[1762700456020,0.04005712,160.27,160.24,3.08119289]
[1762700456222,0.04183535,160.27,160.24,3.08127998]
[1762700457521,3.14,160.35,160.24,3.08127998]
[1762700457722,3.14,160.35,160.25,3.04]
[1762700458516,3.14,160.35,160.24,62.0]
[1762700458517,3.14,160.35,160.28,3.08761411]
[1762700459121,3.14,160.35,160.3,3.04]
[1762700459627,3.14,160.35,160.29,5.6154]
[1762700459816,3.14,160.35,160.28,0.04761411]
[1762700460324,3.14,160.35,160.3,5.6152]
[1762700460518,3.14,160.35,160.28,3.08761411]
[1762700460721,3.14,160.33,160.28,0.04761411]
[1762700460917,3.14,160.31,160.2,3.04]
[1762700461125,3.14,160.29,160.15,3.04]
[1762700461327,3.14,160.25,160.15,3.04]
[1762700461923,0.04602175,160.22,160.19,3.2]
[1762700462429,0.04602175,160.22,160.2,5.6186]
[1762700463732,0.04602175,160.22,160.19,3.2]
[1762700464326,0.04602175,160.22,160.2,5.6186]
[1762700464520,0.04602175,160.22,160.19,3.2]
[1762700464922,0.04602175,160.22,160.2,3.2]
[1762700465528,0.04602175,160.22,160.2,8.8186]
[1762700465729,0.04602175,160.22,160.18,3.2475731]
[1762700467027,0.04602175,160.22,160.19,3.2]
[1762700467936,0.04602175,160.22,160.2,8.8186]
[1762700468135,4.60183714,160.3,160.21,3.2]
[1762700468326,2.94,160.3,160.23,8.8176]
[1762700468526,2.94,160.3,160.23,5.6176]
[1762700468733,2.94,160.28,160.19,8.8189]
[1762700468935,2.94,160.26,160.19,5.6189]
[1762700469134,2.94,160.26,160.21,0.0408502]
[1762700469629,8.5569,160.26,160.21,0.0408502]
[1762700469831,2.94,160.24,160.1,3.2]
[1762700470028,2.94,160.22,160.1,3.2]
[1762700470342,2.94,160.19,160.07,105.90000111]
[1762700470633,2.94,160.19,160.06,3.2]
[1762700470828,0.0408502,160.14,160.11,0.04244509]
[1762700471034,2.94,160.13,160.11,0.04675808]
[1762700474828,2.94,160.13,160.06,8.8236]
[1762700474829,2.94,160.12,160.02,3.2]
[1762700475632,2.94,160.17,160.02,3.2]
[1762700475930,0.04684557,160.11,160.08,3.24615889]
[1762700476635,0.04684557,160.11,160.1,3.2]
[1762700476841,2.94,160.21,160.1,3.2]
[1762700477340,2.94,160.21,160.16,5.6202]
[1762700477658,2.94,160.21,160.13,3.2]
[1762700477831,2.98076271,160.19,160.15,0.04170653]
[1762700478031,2.98076271,160.19,160.15,0.04199885]
[1762700478534,0.04076271,160.19,160.15,3.24199885]
[1762700479731,0.04076271,160.19,160.16,5.6202]
[1762700479930,0.04076271,160.19,160.16,3.2]
[1762700484043,2.94,160.34,160.16,3.2]
[1762700485240,2.94,160.34,160.23,0.04296549]
[1762700485438,2.94,160.34,160.27,0.04249629]
[1762700485640,2.94,160.34,160.29,0.047456]
[1762700485833,2.94,160.33,160.18,3.2]
[1762700486741,0.04619433,160.27,160.25,3.2]
[1762700486942,0.04231946,160.28,160.24,3.2415514]
[1762700487442,2.98231946,160.28,160.24,0.0415514]
[1762700488040,0.04231946,160.28,160.24,3.2415514]
[1762700488936,2.98231946,160.28,160.24,3.2415514]
[1762700489241,2.98231946,160.28,160.24,0.0415514]
[1762700494641,2.98231946,160.28,160.1,3.17]
[1762700494842,2.99,160.27,160.1,3.17]
[1762700495754,0.04630806,160.2,160.17,0.04506374]
[1762700496052,0.0434581,160.2,160.17,0.03968552]
[1762700496442,0.0434581,160.2,160.17,3.20968552]
[1762700497044,0.0434581,160.2,160.17,0.03968552]
[1762700498845,2.99,160.19,160.17,0.03968552]
[1762700499047,2.99,160.19,160.08,3.17]
[1762700499441,2.99,160.19,160.04,3.17]
[1762700500043,3.03298476,160.13,160.1,0.04769809]
[1762700500241,3.03470238,160.13,160.1,0.04783897]
[1762700500552,0.04470238,160.13,160.1,3.21783897]
[1762700500751,0.04470238,160.13,160.1,0.04783897]
[1762700502050,0.04470238,160.13,160.1,3.21783897]
[1762700504452,2.99,160.22,160.1,3.21783897]
[1762700504655,2.99,160.22,160.1,3.17]
[1762700505243,0.04303812,160.18,160.14,0.04188882]
[1762700505444,3.03303812,160.18,160.14,0.04188882]
[1762700506149,0.04303812,160.18,160.14,3.09188882]
[1762700506750,3.23303812,160.18,160.14,3.09188882]
[1762700507140,3.23303812,160.18,160.05,3.05]
[1762700507346,3.19,160.18,160.05,3.05]
[1762700508154,0.0453266,160.13,160.1,3.08964082]
[1762700513352,0.0453266,160.13,160.12,3.05]
[1762700515550,0.0453266,160.13,160.1,3.08964082]
[1762700515750,3.2353266,160.13,160.1,0.03964082]
[1762700516860,0.0453266,160.13,160.1,0.03964082]
[1762700517156,0.0453266,160.13,160.1,3.08964082]
[1762700521049,0.0453266,160.13,160.1,0.03964082]
[1762700521254,4.4753266,160.13,160.1,0.03964082]
[1762700521453,3.19,160.12,160.0,3.05]
[1762700522366,0.04049137,160.08,160.04,0.04711729]
[1762700522856,0.04049137,160.08,160.04,3.23711729]
[1762700523548,3.25049137,160.08,160.04,0.04711729]
[1762700523953,3.25049137,160.08,160.04,3.23711729]
[1762700524763,0.04049137,160.08,160.04,3.23711729]
[1762700525763,3.25049137,160.08,160.04,0.04711729]
[1762700526765,0.04049137,160.08,160.04,3.23711729]
[1762700527065,3.25049137,160.08,160.04,0.04711729]
[1762700533370,3.25049137,160.08,159.96,3.19]
[1762700533569,3.21,160.08,159.96,3.19]
[1762700534273,0.04810733,160.04,160.0,0.04310018]
[1762700534470,3.21,160.03,160.0,0.04310018]
[1762700536380,3.21,160.03,159.93,3.19]
[1762700536567,3.21,160.03,159.88,0.00370694]
[1762700537070,3.21,160.01,159.88,0.00370694]
[1762700537268,3.21,160.0,159.88,0.00370694]
[1762700537569,3.21,159.95,159.92,0.04537948]
[1762700537782,3.25199338,159.95,159.92,0.04100538]
[1762700537968,0.04199338,159.95,159.92,3.23100538]
[1762700538166,0.04199338,159.95,159.92,0.04100538]
[1762700539373,0.04199338,159.95,159.92,3.23100538]
[1762700539971,0.04199338,159.95,159.92,0.04100538]
[1762700541576,0.04199338,159.95,159.92,3.23100538]
[1762700546076,3.25199338,159.95,159.92,0.04100538]
[1762700549880,3.25199338,159.95,159.88,0.00370694]
[1762700550982,3.25199338,159.95,159.9,0.04343491]
[1762700553584,3.08,159.94,159.9,0.04343491]
[1762700556188,3.08,159.94,159.78,2.92]
[1762700557194,3.12540035,159.88,159.84,0.04749399]
[1762700557488,3.12783048,159.88,159.84,0.03990278]
[1762700558086,3.12783048,159.88,159.84,2.95990278]
[1762700558484,3.12783048,159.88,159.84,0.03990278]
[1762700560210,4.38783048,159.88,159.74,2.92]
[1762700560391,3.08,159.87,159.74,2.92]
[1762700561196,3.12523322,159.82,159.79,0.0452679]
[1762700561799,3.12523322,159.82,159.7,2.92]
[1762700562099,3.08,159.82,159.7,2.92]
[1762700562798,0.04438139,159.78,159.75,2.92]
[1762700562989,3.08,159.85,159.75,2.92]
[1762700563191,3.08,159.85,159.75,64.92]
[1762700563496,3.08,159.85,159.76,2.92]
[1762700563995,0.04255995,159.82,159.79,2.96627562]
[1762700564894,3.12255995,159.82,159.79,0.04627562]
[1762700565689,0.04255995,159.82,159.79,0.04627562]
[1762700565900,0.04255995,159.82,159.79,2.96627562]
[1762700570304,0.04255995,159.82,159.79,3.12627562]
[1762700574405,0.04255995,159.82,159.79,0.04627562]
[1762700574999,0.04255995,159.82,159.79,3.12627562]
[1762700579108,3.09,159.91,159.79,3.12627562]
[1762700579315,4.6473728,159.9,159.79,3.08]
[1762700579514,3.09,159.91,159.79,3.08]
[1762700579817,4.65061831,159.9,159.79,3.08]
[1762700580018,3.09,159.91,159.79,3.08]
[1762700580210,0.04078459,159.86,159.83,3.12496183]
[1762700580414,0.0471018,159.86,159.83,3.1262061]
[1762700585114,3.02,159.97,159.83,3.1262061]
[1762700585312,4.65717219,159.96,159.83,3.08]
[1762700585512,3.02,159.97,159.83,3.08]
[1762700585713,4.65766625,159.96,159.83,3.08]
[1762700585908,3.02,159.97,159.83,3.08]
[1762700586113,0.04052045,159.92,159.89,3.22]
[1762700586317,0.04052045,159.92,159.89,3.26749037]
[1762700597524,3.02,160.01,159.89,3.26749037]
[1762700597819,3.02,160.01,159.89,3.22]
[1762700598220,3.02,160.04,159.89,3.22]
[1762700598628,0.04087849,159.98,159.96,3.22]
[1762700599925,0.04087849,159.98,159.95,3.2602568]
[1762700601626,3.02,160.08,159.96,3.22]
[1762700602626,0.04329476,160.04,160.01,3.22]
[1762700602819,0.04200563,160.04,160.02,3.22]
[1762700603030,3.02,160.14,160.02,3.22]
[1762700604127,0.04069546,160.1,160.06,3.26731052]
[1762700606229,3.02,160.21,160.06,3.26731052]
[1762700606428,3.02,160.21,160.06,3.22]
[1762700607333,0.0478515,160.15,160.13,3.22]
[1762700607639,0.04573005,160.16,160.13,3.22]
[1762700607830,0.04573005,160.16,160.13,3.26465515]
[1762700615627,3.22,160.28,160.14,3.08]
[1762700615932,3.22,160.28,160.16,3.08]
[1762700616833,3.22,160.23,160.2,0.04015958]
[1762700617040,3.26085364,160.23,160.2,0.04612043]
[1762700620935,3.22,160.22,160.12,3.08]
[1762700621932,0.04802218,160.19,160.15,3.12431358]
[1762700623432,3.26802218,160.19,160.15,0.04431358]
[1762700624434,0.04802218,160.19,160.15,3.12431358]
[1762700626443,3.13,160.28,160.15,3.12431358]
[1762700626635,3.13,160.28,160.17,3.12]
[1762700626938,3.13,160.28,160.18,3.12]
[1762700627533,3.13,160.28,160.17,65.3]
[1762700627534,0.04440374,160.25,160.21,3.16255151]
[1762700627734,3.13,160.41,160.23,3.12]
[1762700627935,3.13,160.45,160.25,3.12]
[1762700628132,3.13,160.45,160.27,3.12]
[1762700628347,3.13,160.49,160.28,3.12]
[1762700628841,0.03516991,160.4,160.38,3.12]
[1762700629034,3.13,160.49,160.38,3.12]
[1762700630035,3.13,160.49,160.42,0.04414188]
[1762700632745,3.13,160.49,160.23,18.51151469]
[1762700632746,3.13,160.49,160.31,3.12]
[1762700633743,0.04406526,160.42,160.38,0.04140071]
[1762700633952,3.13,160.41,160.38,0.04202707]
[1762700635046,4.37,160.41,160.27,3.12]
[1762700635254,3.13,160.4,160.27,3.12]
[1762700636152,3.13,160.34,160.32,0.04227203]
[1762700636342,3.13,160.34,160.31,0.04575033]
[1762700637145,0.04007123,160.35,160.31,3.16575033]
[1762700637548,3.13,160.42,160.31,3.16575033]
[1762700637740,3.13,160.42,160.31,3.12]
[1762700638446,0.04379039,160.38,160.35,0.04804355]
[1762700639054,0.04379039,160.38,160.35,3.16804355]
[1762700639849,3.13,160.46,160.35,3.16804355]
[1762700640048,3.13,160.46,160.35,3.12]
[1762700640847,3.13,160.46,160.39,0.046493]
[1762700641062,3.13,160.46,160.39,3.166493]
[1762700641551,3.13,160.46,160.39,0.046493]
[1762700644552,3.07,160.49,160.39,3.066493]
[1762700644755,3.07,160.49,160.42,0.04109774]
[1762700647142,65.2,160.53,160.42,3.06109774]
[1762700647143,3.07,160.53,160.42,3.06109774]
[1762700647341,3.07,160.53,160.46,3.06487248]
[1762700647550,3.07,160.53,160.48,3.06334498]
[1762700647749,3.07,160.53,160.49,0.04224604]
[1762700649353,3.07,160.6,160.49,3.06224604]
[1762700649655,3.07,160.6,160.53,0.0428468]
[1762700652867,3.07,160.66,160.53,3.0628468]
[1762700653156,3.07,160.66,160.58,0.04253953]
[1762700654763,3.07,160.66,160.58,0.00253953]
[1762700655169,3.07,160.66,160.58,3.02253953]
[1762700655854,0.04130443,160.64,160.58,3.02253953]
[1762700656055,0.04130443,160.63,160.59,3.06594468]
[1762700656354,0.04130443,160.63,160.59,3.06373632]
[1762700658060,3.11130443,160.63,160.59,0.04373632]
[1762700659359,3.11130443,160.63,160.47,3.02]
[1762700659556,3.07,160.62,160.47,3.02]
[1762700660461,3.07,160.55,160.53,0.04523116]
[1762700660666,3.07,160.55,160.52,0.04189443]
[1762700660866,3.1106667,160.55,160.44,195.14524042]
[1762700661163,3.07,160.55,160.44,195.14524042]
[1762700661555,3.07,160.55,160.42,3.02]
[1762700661961,3.11069909,160.5,160.47,0.04266161]
[1762700663767,0.04069909,160.5,160.47,0.04266161]
[1762700664264,3.11069909,160.5,160.47,0.04266161]
[1762700668966,0.04069909,160.5,160.47,0.04266161]
[1762700669166,0.04069909,160.5,160.47,3.06266161]
[1762700669358,79.74,160.63,160.47,3.06266161]
[1762700669359,3.07,160.58,160.47,3.06266161]
[1762700669568,3.07,160.58,160.47,3.02]
[1762700670459,0.04517653,160.54,160.51,0.04298654]
[1762700671473,0.04517653,160.54,160.51,3.06298654]
[1762700671970,2.92,160.62,160.51,3.06298654]
[1762700672162,2.92,160.62,160.51,3.02]
[1762700673072,0.04105956,160.58,160.55,0.04737817]
[1762700673269,0.04105956,160.58,160.56,2.98]
[1762700673469,68.06,160.66,160.56,2.98]
[1762700674067,2.92,160.65,160.49,2.98]
[1762700674373,2.92,160.65,160.55,0.04589632]
[1762700674576,2.92,160.65,160.49,2.98]
[1762700674878,2.92,160.65,160.55,0.0444159]
[1762700675073,2.92,160.65,160.58,0.0410955]
[1762700684082,8.68589233,160.65,160.58,0.0410955]
[1762700684287,2.92,160.64,160.58,0.0410955]
[1762700684485,2.92,160.64,160.59,0.03945417]
[1762700685883,2.92,160.68,160.59,3.01945417]
[1762700686188,2.92,160.68,160.62,0.03953951]
[1762700686377,2.92,160.68,160.63,0.04101275]
[1762700687983,3.2,160.65,160.51,3.3592]
[1762700688182,3.2,160.64,160.51,3.3592]
[1762700688973,0.04101276,160.59,160.57,3.2]
[1762700689376,3.2,160.69,160.59,3.2]
[1762700690279,3.2,160.69,160.62,0.04516084]
[1762700691981,3.2,160.73,160.62,3.24516084]
[1762700692285,3.2,160.73,160.66,0.04119822]
[1762700693081,3.2,160.73,160.66,3.24119822]
[1762700693287,3.2,160.73,160.66,0.04119822]
[1762700695389,65.1,160.75,160.66,3.24119822]
[1762700697387,68.3,160.75,160.66,3.24119822]
[1762700697889,3.2,160.74,160.66,3.24119822]
[1762700699888,3.2,160.74,160.66,0.04119822]
[1762700700788,3.2,160.74,160.66,3.24119822]
[1762700700987,3.2,160.74,160.66,0.04119822]
[1762700701192,3.2,160.72,160.66,0.04119822]
[1762700701385,3.2,160.7,160.52,3.2]
[1762700701581,3.2,160.7,160.63,0.04407945]
[1762700701896,21.84,160.67,160.51,3.2692]
[1762700702078,3.15,160.65,160.51,3.2692]
[1762700702282,18.69,160.66,160.51,3.2692]
[1762700702283,3.15,160.63,160.51,3.2692]
[1762700702883,3.15,160.63,160.55,0.04455952]
[1762700703079,0.04166974,160.59,160.55,0.04455952]
[1762700704391,0.04166974,160.59,160.56,3.11]
[1762700704585,3.15,160.68,160.56,3.11]
[1762700705695,3.15,160.68,160.6,0.04439282]
[1762700706596,3.15,160.68,160.6,3.15439282]
[1762700707100,68.27,160.72,160.6,3.15439282]
[1762700707293,68.27,160.72,160.64,0.04730468]
[1762700707487,3.15,160.71,160.64,0.04730468]
[1762700709896,3.15,160.69,160.51,0.1592]
[1762700710102,3.15,160.67,160.51,3.2692]
[1762700710897,3.19615584,160.61,160.57,0.04396632]
[1762700711101,3.19695044,160.61,160.57,0.04335044]
[1762700713198,0.04695044,160.61,160.57,3.15335044]
[1762700713897,0.04695044,160.61,160.57,0.04335044]
[1762700714099,3.19695044,160.61,160.57,0.04335044]
[1762700714403,0.04695044,160.61,160.57,0.04335044]
[1762700714604,0.04695044,160.61,160.57,3.15335044]
[1762700715400,3.19695044,160.61,160.51,0.1592]
[1762700715605,3.15,160.59,160.51,0.1592]
[1762700715801,4.39423233,160.58,160.51,0.1592]
[1762700716105,3.15,160.56,160.51,0.1592]
[1762700716400,3.15,160.54,160.42,3.11]
[1762700716808,3.15,160.58,160.42,3.11]
[1762700717306,3.15,160.58,160.44,3.11]
[1762700717500,0.03950935,160.53,160.5,3.11]
[1762700717704,0.04281136,160.53,160.5,3.15707469]
[1762700717903,0.04281136,160.53,160.51,3.11]
[1762700718407,43.86,160.6,160.52,3.11]
[1762700719292,0.04394489,160.58,160.54,0.04727258]
[1762700719804,0.04394489,160.58,160.54,3.15727258]
[1762700721205,3.15,160.66,160.54,3.15727258]
[1762700721508,4.38888619,160.67,160.55,3.11]
[1762700721711,3.15,160.7,160.55,3.11]
[1762700722203,0.04395386,160.64,160.61,3.15027459]
[1762700723809,0.04395386,160.64,160.61,0.04027459]
[1762700724806,3.19395386,160.64,160.61,0.04027459]
[1762700727308,0.04395386,160.64,160.61,0.04027459]
[1762700729506,3.19395386,160.64,160.61,0.04027459]
[1762700730007,0.04395386,160.64,160.61,0.04027459]
[1762700730203,0.04395386,160.64,160.61,3.15027459]
[1762700730811,4.38695175,160.73,160.63,3.11]
[1762700731011,3.15,160.74,160.63,3.11]
[1762700731209,3.15,160.72,160.63,3.11]
[1762700731707,3.15,160.71,160.63,3.11]
[1762700731910,3.15,160.71,160.66,0.0472451]
[1762700732304,4.38695175,160.7,160.66,0.0472451]
[1762700732612,3.13,160.68,160.58,2.99]
[1762700732802,3.13,160.66,160.58,2.99]
[1762700733108,3.13,160.66,160.5,2.99]
[1762700733710,0.04095604,160.6,160.57,2.99]
[1762700733897,0.04095604,160.6,160.57,0.04527613]
[1762700734707,3.17095604,160.6,160.57,0.04527613]
[1762700734907,0.04095604,160.6,160.57,0.04527613]
[1762700736211,3.17095604,160.6,160.57,0.04527613]
[1762700737113,3.17095604,160.6,160.45,2.99]
[1762700737305,3.13,160.58,160.45,2.99]
[1762700737511,3.13,160.57,160.45,2.99]
[1762700738109,3.13,160.52,160.49,0.04310557]
[1762700739413,0.042119,160.53,160.49,3.03310557]
[1762700740105,4.38695175,160.61,160.49,3.03310557]
[1762700740106,7.51695175,160.61,160.5,2.99]
[1762700740320,3.13,160.61,160.5,2.99]
[1762700741212,0.04793172,160.57,160.54,0.04437839]
[1762700742719,0.04793172,160.57,160.54,3.03437839]
[1762700746311,0.04793172,160.57,160.54,0.04437839]
[1762700746514,3.03793172,160.57,160.54,0.04437839]
[1762700748314,2.99,160.55,160.46,2.95]
[1762700749412,5.76589233,160.59,160.46,2.95]
[1762700749413,3.02960141,160.52,160.49,0.04797042]
[1762700749722,3.03323894,160.52,160.49,0.04605498]
[1762700755820,0.04323894,160.52,160.49,2.99605498]
[1762700759030,0.04323894,160.52,160.49,0.04605498]
[1762700759719,2.99,160.63,160.51,2.95]
[1762700759920,4.38496157,160.66,160.51,2.95]
[1762700760120,2.99,160.67,160.51,2.95]
[1762700760729,0.041158,160.61,160.58,2.95]
[1762700760936,0.04500509,160.61,160.58,2.99440709]
[1762700761429,2.99,160.71,160.59,2.95]
[1762700761935,65.28,160.73,160.59,2.95]
[1762700762430,65.28,160.73,160.65,3.18]
[1762700762630,65.28,160.73,160.67,0.04295898]
[1762700763425,3.21,160.75,160.67,0.04295898]
[1762700763731,3.21,160.79,160.67,3.22295898]
[1762700764034,3.21,160.79,160.71,0.04211781]
[1762700764334,3.21,160.79,160.71,3.22211781]
[1762700765225,3.21,160.83,160.71,3.22211781]
[1762700765432,3.21,160.83,160.75,0.04701467]
[1762700765730,65.44,160.86,160.75,3.22701467]
[1762700765924,68.65,160.86,160.79,0.04332695]
[1762700766436,3.21,160.85,160.79,0.04332695]
[1762700770026,3.21,160.89,160.79,3.22332695]
[1762700770238,3.21,160.89,160.82,0.04712508]
[1762700772634,3.21,160.94,160.82,3.22712508]
[1762700772830,3.21,160.94,160.86,0.04002515]
[1762700772831,3.21,160.93,160.86,0.04002515]
[1762700773734,3.21,160.93,160.86,3.22002515]
[1762700775938,3.21,160.93,160.86,0.04002515]
[1762700776938,3.21,160.97,160.86,3.22002515]
[1762700777145,3.21,160.97,160.9,0.03997813]
[1762700778442,3.21,160.97,160.9,3.21997813]
[1762700778638,3.21,161.0,160.9,3.21997813]
[1762700778835,3.21,161.0,160.93,0.04431064]
[1762700784045,3.21,161.0,160.82,3.18]
[1762700785143,3.25556677,160.93,160.89,0.04411357]
[1762700785346,3.2527229,160.93,160.89,0.04108048]
[1762700786241,0.0427229,160.93,160.89,3.22108048]
[1762700788154,0.0427229,160.93,160.89,4.46108048]
[1762700788349,0.0427229,160.93,160.9,3.18]
[1762700790249,0.0427229,160.93,160.9,1.24]
[1762700790455,0.0427229,160.93,160.91,3.18]
[1762700792055,3.2,161.02,160.91,3.18]
[1762700793151,3.2,161.06,160.96,3.04]
[1762700793352,3.2,161.06,160.99,0.04243591]
[1762700798444,21.89,161.05,160.99,0.04243591]
[1762700798747,3.2,161.05,160.99,0.04243591]
[1762700804251,3.2,161.03,160.99,0.04243591]
[1762700806258,8.96589233,161.03,160.99,0.04243591]
[1762700806450,3.2,161.03,160.99,0.04243591]
[1762700806752,3.2,161.03,160.99,3.20243591]
[1762700807752,16.37085565,161.07,160.99,3.20243591]
[1762700807957,3.0,161.06,160.99,3.20243591]
[1762700808358,8.76589233,161.06,160.99,3.20243591]
[1762700809861,5.76589233,161.07,160.99,3.20243591]
[1762700810061,5.76589233,161.07,161.01,0.04423056]
[1762700810850,5.76589233,161.07,161.01,3.20423056]
[1762700811664,8.76589233,161.07,161.01,0.04423056]
[1762700811964,3.0,161.05,161.01,0.04423056]
[1762700812856,8.76589233,161.05,161.01,0.04423056]
[1762700813164,3.0,161.04,161.01,0.04423056]
[1762700814757,3.0,161.05,161.01,0.04423056]
[1762700816160,3.0,161.05,161.01,3.20423056]
[1762700817261,3.0,161.05,161.01,0.04423056]
[1762700817866,3.0,161.05,161.01,3.20423056]
[1762700818057,5.76589233,161.06,161.01,3.20423056]
[1762700818366,3.0,161.06,161.01,0.04423056]
[1762700818663,3.0,161.05,161.01,0.04423056]
[1762700820066,3.0,161.03,161.01,0.04423056]
[1762700820367,3.0,161.02,160.93,3.16]
[1762700821163,8.76589233,161.02,160.93,3.16]
[1762700821466,0.0446224,160.99,160.96,0.0455132]
[1762700821765,0.04136656,160.99,160.96,0.04592815]
[1762700822668,3.17136656,160.99,160.96,0.04592815]
[1762700823266,0.04136656,160.99,160.96,3.16592815]
[1762700824561,3.13,161.07,160.97,3.12]
[1762700825460,70.70589233,161.09,160.97,3.12]
[1762700825659,64.94,161.09,161.02,3.12]
[1762700825859,5.76589233,161.1,161.02,3.12]
[1762700826059,3.13,161.11,161.04,3.16388742]
[1762700826268,3.13,161.11,161.06,3.16162355]
[1762700826467,3.13,161.11,161.07,0.0403441]
[1762700826659,5.76589233,161.14,161.07,3.1603441]
[1762700826863,8.89589233,161.14,161.07,3.1603441]
[1762700827068,3.13,161.13,161.07,0.0403441]
[1762700828770,3.13,161.13,161.07,3.1603441]
[1762700829072,64.94,161.15,161.07,3.1603441]
[1762700829472,3.13,161.2,161.07,3.1603441]
[1762700829770,3.13,161.2,161.12,0.04362369]
[1762700830273,8.89589233,161.2,161.12,0.04362369]
[1762700830465,3.13,161.18,161.12,0.04362369]
[1762700830666,3.13,161.18,161.13,0.04397777]
[1762700830866,8.89589233,161.22,161.13,3.16397777]
[1762700831167,3.13,161.22,161.13,3.16397777]
[1762700832461,5.76589233,161.25,161.13,3.16397777]
[1762700832660,3.13,161.24,161.17,0.04083243]
[1762700832865,3.13,161.24,161.19,0.04332054]
[1762700833874,3.13,161.24,161.19,3.16332054]
[1762700834570,3.13,161.26,161.19,0.04332054]
[1762700836874,3.13,161.25,161.19,0.04332054]
[1762700837167,3.13,161.23,161.03,3.12]
[1762700837367,3.13,161.22,161.03,3.12]
[1762700837573,3.13,161.2,161.03,3.12]
[1762700837768,3.13,161.19,161.03,3.12]
[1762700837974,3.13,161.16,161.03,3.12]
[1762700838180,3.13,161.1,161.08,0.04565196]
[1762700838880,3.13,161.1,160.99,3.12]
[1762700839779,51.34,161.12,161.03,0.04526476]
[1762700839780,3.17618379,161.06,161.03,0.04526476]
[1762700840474,0.04618379,161.06,161.03,0.04526476]
[1762700840872,0.04618379,161.06,161.03,3.16526476]
[1762700841678,0.04618379,161.06,161.03,0.04526476]
[1762700842678,0.04618379,161.06,161.03,3.16526476]
[1762700844576,0.04618379,161.06,161.03,0.04526476]
[1762700845071,0.04618379,161.06,161.03,3.16526476]
[1762700855093,0.04618379,161.06,161.03,0.04526476]
[1762700855594,3.05618379,161.06,161.03,0.04526476]
[1762700856888,0.04618379,161.06,161.03,0.04526476]
[1762700858688,3.05618379,161.06,161.03,0.04526476]
[1762700859090,0.04618379,161.06,161.03,3.09526476]
[1762700859688,0.04618379,161.06,161.03,0.04526476]
[1762700860088,0.04618379,161.06,161.03,3.09526476]
[1762700862991,0.04618379,161.06,161.03,0.04526476]
[1762700864100,0.04618379,161.06,161.03,3.09526476]
[1762700870899,2.9,161.14,161.03,3.09526476]
[1762700871100,2.9,161.17,161.03,3.05]
[1762700871902,2.94302236,161.12,161.08,0.0401629]
[1762700872107,2.94302236,161.12,161.08,0.04506145]
[1762700873103,2.94302236,161.12,161.08,2.95506145]
[1762700873803,2.94302236,161.12,161.08,0.04506145]
[1762700874106,2.9,161.11,161.08,0.04506145]
[1762700878105,2.9,161.11,160.99,2.91]
[1762700878506,2.9,161.1,160.99,2.91]
[1762700879105,0.04279491,161.06,161.03,0.04021219]
[1762700879711,2.94279491,161.06,161.03,0.04021219]
[1762700881706,0.04279491,161.06,161.03,2.95021219]
[1762700882005,3.11279491,161.06,161.03,0.04021219]
[1762700883610,0.04279491,161.06,161.03,3.01021219]
[1762700884112,5.76589233,161.13,161.05,2.97]
[1762700884310,7.60496332,161.15,161.05,2.97]